[Event "Titled Tuesday Blitz May 30 Early 2023"]
[White "OPQRC"]
[Black "Hasangatin, Ramil"]
[BlackFideId "4122160"]
[WhiteElo "2527"]
[BlackElo "2279"]
[Result "1-0"]
[Round "03"]
[TimeControl "180+2"]
[Date "2023.05.30"]
[WhiteClock "0:00:06"]
[BlackClock "0:00:00"]

1. e4 {[%clk 0:02:53]}  d6 {[%clk 0:02:58]} 2. d4 {[%clk 0:02:53]}  Nf6 {[%clk 0:02:59]} 3. Nc3 {[%clk 0:02:52]}  e5 {[%clk 0:03:00]} 4. dxe5 {[%clk 0:02:48]}  dxe5 {[%clk 0:03:01]} 5. Qxd8+ {[%clk 0:02:48]}  Kxd8 {[%clk 0:03:02]} 6. Bg5 {[%clk 0:02:48]}  Be6 {[%clk 0:03:01]} 7. f4 {[%clk 0:02:46]}  exf4 {[%clk 0:03:01]} 8. Bxf4 {[%clk 0:02:43]}  Nbd7 {[%clk 0:02:59]} 9. a3 {[%clk 0:02:38]}  c6 {[%clk 0:02:56]} 10. Nf3 {[%clk 0:02:30]}  Bc5 {[%clk 0:02:39]} 11. h3 {[%clk 0:02:27]}  h6 {[%clk 0:02:21]} 12. O-O-O {[%clk 0:02:25]}  Nh5 {[%clk 0:02:12]} 13. Bh2 {[%clk 0:02:22]}  Be3+ {[%clk 0:02:11]} 14. Kb1 {[%clk 0:02:21]}  Bf4 {[%clk 0:02:11]} 15. g4 {[%clk 0:02:13]}  Bxh2 {[%clk 0:02:10]} 16. Rxh2 {[%clk 0:02:13]}  Nf4 {[%clk 0:02:08]} 17. Nd4 {[%clk 0:01:53]}  Ke7 {[%clk 0:02:02]} 18. Rf2 {[%clk 0:01:45]}  g5 {[%clk 0:02:01]} 19. Rfd2 {[%clk 0:01:23]}  Ne5 {[%clk 0:01:59]} 20. Nce2 {[%clk 0:01:14]}  Nxe2 {[%clk 0:01:51]} 21. Bxe2 {[%clk 0:01:11]}  Rad8 {[%clk 0:01:51]} 22. b3 {[%clk 0:00:59]}  c5 {[%clk 0:01:50]} 23. Nb5 {[%clk 0:00:59]}  Rxd2 {[%clk 0:01:35]} 24. Rxd2 {[%clk 0:01:00]}  a6 {[%clk 0:01:34]} 25. Nc7 {[%clk 0:00:47]}  Rd8 {[%clk 0:01:25]} 26. Nd5+ {[%clk 0:00:47]}  Kf8 {[%clk 0:01:22]} 27. a4 {[%clk 0:00:41]}  Kg7 {[%clk 0:01:21]} 28. Kb2 {[%clk 0:00:40]}  Ng6 {[%clk 0:01:17]} 29. Kc3 {[%clk 0:00:34]}  Ne5 {[%clk 0:01:06]} 30. Bc4 {[%clk 0:00:27]}  Rd6 {[%clk 0:01:03]} 31. a5 {[%clk 0:00:24]}  Kf8 {[%clk 0:01:01]} 32. Rf2 {[%clk 0:00:21]}  Kg7 {[%clk 0:00:55]} 33. Nf6 {[%clk 0:00:16]}  Nxc4 {[%clk 0:00:37]} 34. bxc4 {[%clk 0:00:11]}  Rd4 {[%clk 0:00:36]} 35. Nd5 {[%clk 0:00:08]}  Rxe4 {[%clk 0:00:35]} 36. Rf1 {[%clk 0:00:08]}  Bd7 {[%clk 0:00:16]} 37. Rb1 {[%clk 0:00:07]}  Bc6 {[%clk 0:00:17]} 38. Rb6 {[%clk 0:00:05]}  Re5 {[%clk 0:00:15]} 39. Kb3 {[%clk 0:00:03]}  h5 {[%clk 0:00:13]} 40. Nc7 {[%clk 0:00:03]}  Bg2 {[%clk 0:00:11]} 41. Nd5 {[%clk 0:00:03]}  Bxh3 {[%clk 0:00:10]} 42. gxh5 {[%clk 0:00:03]}  g4 {[%clk 0:00:10]} 43. h6+ {[%clk 0:00:02]}  Kh7 {[%clk 0:00:10]} 44. Nf6+ {[%clk 0:00:02]}  Kg6 {[%clk 0:00:06]} 45. Nxg4+ {[%clk 0:00:02]}  Re6 {[%clk 0:00:06]} 46. Ne5+ {[%clk 0:00:02]}  Kxh6 {[%clk 0:00:05]} 47. Nxf7+ {[%clk 0:00:02]}  Kg7 {[%clk 0:00:05]} 48. Rxe6 {[%clk 0:00:02]}  Bxe6 {[%clk 0:00:06]} 49. Nd6 {[%clk 0:00:03]}  Kf6 {[%clk 0:00:05]} 50. Nxb7 {[%clk 0:00:03]}  Bc8 {[%clk 0:00:05]} 51. Nxc5 {[%clk 0:00:03]}  Ke5 {[%clk 0:00:05]} 52. Kb4 {[%clk 0:00:04]}  Kd4 {[%clk 0:00:06]} 53. c3+ {[%clk 0:00:05]}  Ke5 {[%clk 0:00:06]} 54. Na4 {[%clk 0:00:05]}  Kd6 {[%clk 0:00:06]} 55. Nb6 {[%clk 0:00:05]}  Bb7 {[%clk 0:00:06]} 56. Na4 {[%clk 0:00:06]}  Kc6 {[%clk 0:00:06]} 57. Nc5 {[%clk 0:00:06]}  Bc8 {[%clk 0:00:07]} 58. Nd3 {[%clk 0:00:06]}  Bf5 {[%clk 0:00:06]} 59. Ne5+ {[%clk 0:00:06]}  Kd6 {[%clk 0:00:06]} 60. Nf3 {[%clk 0:00:06]}  Be4 {[%clk 0:00:06]} 61. Nd4 {[%clk 0:00:07]}  Kc7 {[%clk 0:00:05]} 62. Kc5 {[%clk 0:00:07]}  Bd3 {[%clk 0:00:06]} 63. Ne6+ {[%clk 0:00:07]}  Kb7 {[%clk 0:00:05]} 64. Nf4 {[%clk 0:00:07]}  Bf1 {[%clk 0:00:06]} 65. Nd5 {[%clk 0:00:07]}  Bg2 {[%clk 0:00:05]} 66. Kd6 {[%clk 0:00:05]}  Bf1 {[%clk 0:00:05]} 67. c5 {[%clk 0:00:06]}  Bb5 {[%clk 0:00:05]} 68. Ne7 {[%clk 0:00:06]}  Kb8 {[%clk 0:00:05]} 69. c6 {[%clk 0:00:06]}  Bf1 {[%clk 0:00:05]} 70. c7+ {[%clk 0:00:06]}  Ka7 {[%clk 0:00:00]} 71. c8=Q {[%clk 0:00:06]} 1-0


[Site "https://www.chess.com"]

[Event "Titled Tuesday Blitz May 30 Early 2023"]
[White "Kushko, Dmitriy"]
[Black "Dudzinski, Pawel"]
[WhiteFideId "14162261"]
[BlackFideId "1117890"]
[WhiteElo "2230"]
[BlackElo "2099"]
[Result "0-1"]
[Round "03"]
[TimeControl "180+2"]
[Date "2023.05.30"]
[WhiteClock "0:00:00"]
[BlackClock "0:00:04"]

1. Nf3 {[%clk 0:03:00]}  g6 {[%clk 0:02:58]} 2. d4 {[%clk 0:03:00]}  Bg7 {[%clk 0:02:58]} 3. e4 {[%clk 0:03:00]}  c6 {[%clk 0:02:58]} 4. Bd3 {[%clk 0:02:59]}  d5 {[%clk 0:02:59]} 5. O-O {[%clk 0:02:45]}  dxe4 {[%clk 0:02:58]} 6. Bxe4 {[%clk 0:02:46]}  Nf6 {[%clk 0:02:58]} 7. Bd3 {[%clk 0:02:46]}  Bg4 {[%clk 0:02:58]} 8. c3 {[%clk 0:02:45]}  Nbd7 {[%clk 0:02:56]} 9. Re1 {[%clk 0:02:44]}  O-O {[%clk 0:02:56]} 10. Nbd2 {[%clk 0:02:37]}  c5 {[%clk 0:02:54]} 11. h3 {[%clk 0:02:35]}  Bxf3 {[%clk 0:02:53]} 12. Nxf3 {[%clk 0:02:36]}  cxd4 {[%clk 0:02:53]} 13. Nxd4 {[%clk 0:02:34]}  e5 {[%clk 0:02:50]} 14. Nb3 {[%clk 0:02:20]}  Qc7 {[%clk 0:02:45]} 15. Qe2 {[%clk 0:02:15]}  Rfe8 {[%clk 0:02:37]} 16. Bg5 {[%clk 0:02:09]}  h6 {[%clk 0:02:35]} 17. Bh4 {[%clk 0:02:07]}  Nc5 {[%clk 0:02:26]} 18. Nxc5 {[%clk 0:02:00]}  Qxc5 {[%clk 0:02:27]} 19. Rad1 {[%clk 0:01:54]}  Rad8 {[%clk 0:01:48]} 20. Bb5 {[%clk 0:01:52]}  Rxd1 {[%clk 0:01:33]} 21. Rxd1 {[%clk 0:01:52]}  Rc8 {[%clk 0:01:27]} 22. Ba4 {[%clk 0:01:46]}  g5 {[%clk 0:01:21]} 23. Bg3 {[%clk 0:01:46]}  e4 {[%clk 0:01:05]} 24. Bb3 {[%clk 0:01:45]}  Qe7 {[%clk 0:00:59]} 25. h4 {[%clk 0:01:25]}  Rd8 {[%clk 0:00:57]} 26. hxg5 {[%clk 0:01:25]}  Rxd1+ {[%clk 0:00:55]} 27. Qxd1 {[%clk 0:01:23]}  hxg5 {[%clk 0:00:56]} 28. Qd6 {[%clk 0:01:05]}  Qxd6 {[%clk 0:00:55]} 29. Bxd6 {[%clk 0:01:05]}  Bf8 {[%clk 0:00:31]} 30. Be5 {[%clk 0:01:04]}  Be7 {[%clk 0:00:27]} 31. Bd4 {[%clk 0:00:59]}  b6 {[%clk 0:00:27]} 32. Kf1 {[%clk 0:00:58]}  Kf8 {[%clk 0:00:19]} 33. Ke2 {[%clk 0:00:59]}  Ng4 {[%clk 0:00:20]} 34. Bd5 {[%clk 0:00:41]}  f5 {[%clk 0:00:18]} 35. Be6 {[%clk 0:00:41]}  Nh6 {[%clk 0:00:17]} 36. b4 {[%clk 0:00:41]}  Bd6 {[%clk 0:00:17]} 37. a4 {[%clk 0:00:39]}  Ke7 {[%clk 0:00:17]} 38. Bd5 {[%clk 0:00:29]}  Nf7 {[%clk 0:00:16]} 39. a5 {[%clk 0:00:25]}  Bc7 {[%clk 0:00:15]} 40. a6 {[%clk 0:00:19]}  Nd6 {[%clk 0:00:14]} 41. c4 {[%clk 0:00:15]}  Ne8 {[%clk 0:00:13]} 42. c5 {[%clk 0:00:15]}  Nf6 {[%clk 0:00:10]} 43. Bb7 {[%clk 0:00:14]}  Nd7 {[%clk 0:00:09]} 44. g4 {[%clk 0:00:11]}  bxc5 {[%clk 0:00:09]} 45. bxc5 {[%clk 0:00:11]}  fxg4 {[%clk 0:00:09]} 46. Bxe4 {[%clk 0:00:11]}  Be5 {[%clk 0:00:09]} 47. Be3 {[%clk 0:00:08]}  Bf4 {[%clk 0:00:09]} 48. c6 {[%clk 0:00:07]}  Bxe3 {[%clk 0:00:08]} 49. Kxe3 {[%clk 0:00:06]}  Nc5 {[%clk 0:00:08]} 50. Bg2 {[%clk 0:00:04]}  Kd6 {[%clk 0:00:08]} 51. Kd4 {[%clk 0:00:04]}  Nxa6 {[%clk 0:00:09]} 52. Ke4 {[%clk 0:00:04]}  Nb8 {[%clk 0:00:09]} 53. Kf5 {[%clk 0:00:04]}  Nxc6 {[%clk 0:00:10]} 54. Kxg4 {[%clk 0:00:03]}  a5 {[%clk 0:00:08]} 55. Kxg5 {[%clk 0:00:04]}  a4 {[%clk 0:00:09]} 56. Be4 {[%clk 0:00:02]}  a3 {[%clk 0:00:08]} 57. Bb1 {[%clk 0:00:03]}  Nd4 {[%clk 0:00:07]} 58. f4 {[%clk 0:00:03]}  Ne2 {[%clk 0:00:07]} 59. f5 {[%clk 0:00:02]}  Nc3 {[%clk 0:00:08]} 60. f6 {[%clk 0:00:00]}  Ne4+ {[%clk 0:00:04]} 0-1


[Site "https://www.chess.com"]

[Event "Titled Tuesday Blitz May 30 Early 2023"]
[White "Quintiliano Pinto, Renato R."]
[Black "Mackster23"]
[WhiteFideId "2117568"]
[WhiteElo "2459"]
[BlackElo "2446"]
[Result "1-0"]
[Round "03"]
[TimeControl "180+2"]
[Date "2023.05.30"]
[WhiteClock "0:00:18"]
[BlackClock "0:00:00"]

1. Nf3 {[%clk 0:03:00]}  Nf6 {[%clk 0:02:55]} 2. b3 {[%clk 0:03:00]}  g6 {[%clk 0:02:52]} 3. Bb2 {[%clk 0:03:00]}  Bg7 {[%clk 0:02:53]} 4. g3 {[%clk 0:03:00]}  O-O {[%clk 0:02:53]} 5. Bg2 {[%clk 0:03:01]}  d6 {[%clk 0:02:54]} 6. d4 {[%clk 0:03:01]}  a5 {[%clk 0:02:40]} 7. a4 {[%clk 0:02:53]}  Nc6 {[%clk 0:02:38]} 8. O-O {[%clk 0:02:52]}  Ne4 {[%clk 0:02:35]} 9. Nbd2 {[%clk 0:02:50]}  d5 {[%clk 0:02:22]} 10. e3 {[%clk 0:02:48]}  Bf5 {[%clk 0:02:16]} 11. c4 {[%clk 0:02:47]}  Nb4 {[%clk 0:01:53]} 12. Nxe4 {[%clk 0:02:26]}  Bxe4 {[%clk 0:01:53]} 13. Ne1 {[%clk 0:02:23]}  Bxg2 {[%clk 0:01:51]} 14. Nxg2 {[%clk 0:02:22]}  c5 {[%clk 0:01:45]} 15. Nf4 {[%clk 0:02:06]}  dxc4 {[%clk 0:01:44]} 16. bxc4 {[%clk 0:02:07]}  cxd4 {[%clk 0:01:44]} 17. exd4 {[%clk 0:02:06]}  e6 {[%clk 0:01:42]} 18. Rc1 {[%clk 0:02:04]}  Qg5 {[%clk 0:01:34]} 19. h4 {[%clk 0:02:02]}  Qf5 {[%clk 0:01:34]} 20. Qb3 {[%clk 0:01:59]}  Rfd8 {[%clk 0:01:31]} 21. Rfd1 {[%clk 0:01:58]}  Rac8 {[%clk 0:01:28]} 22. Bc3 {[%clk 0:01:53]}  Bh6 {[%clk 0:01:15]} 23. Bxb4 {[%clk 0:01:08]}  axb4 {[%clk 0:01:14]} 24. Qxb4 {[%clk 0:01:09]}  Bxf4 {[%clk 0:01:13]} 25. gxf4 {[%clk 0:01:10]}  Qxf4 {[%clk 0:01:07]} 26. Qxb7 {[%clk 0:01:09]}  Rb8 {[%clk 0:00:59]} 27. Qe7 {[%clk 0:01:02]}  Rxd4 {[%clk 0:00:53]} 28. Rxd4 {[%clk 0:01:01]}  Qxd4 {[%clk 0:00:53]} 29. Qg5 {[%clk 0:00:49]}  Rb2 {[%clk 0:00:47]} 30. Qg3 {[%clk 0:00:47]}  Qd2 {[%clk 0:00:28]} 31. Qe3 {[%clk 0:00:45]}  Qb4 {[%clk 0:00:21]} 32. Rd1 {[%clk 0:00:39]}  Qe7 {[%clk 0:00:12]} 33. Qd4 {[%clk 0:00:33]}  Rc2 {[%clk 0:00:08]} 34. a5 {[%clk 0:00:29]}  Ra2 {[%clk 0:00:06]} 35. Qd8+ {[%clk 0:00:22]}  Qxd8 {[%clk 0:00:06]} 36. Rxd8+ {[%clk 0:00:23]}  Kg7 {[%clk 0:00:07]} 37. Ra8 {[%clk 0:00:24]}  Rc2 {[%clk 0:00:06]} 38. Rc8 {[%clk 0:00:24]}  Ra2 {[%clk 0:00:06]} 39. Rc5 {[%clk 0:00:24]}  Ra4 {[%clk 0:00:07]} 40. Kf1 {[%clk 0:00:21]}  Kh6 {[%clk 0:00:06]} 41. Ke2 {[%clk 0:00:21]}  f5 {[%clk 0:00:06]} 42. Kd3 {[%clk 0:00:20]}  Kh5 {[%clk 0:00:06]} 43. Kc3 {[%clk 0:00:21]}  Kxh4 {[%clk 0:00:05]} 44. Kb3 {[%clk 0:00:20]}  Ra1 {[%clk 0:00:05]} 45. Re5 {[%clk 0:00:20]}  Kg4 {[%clk 0:00:04]} 46. Rxe6 {[%clk 0:00:20]}  Kg5 {[%clk 0:00:02]} 47. Re2 {[%clk 0:00:20]}  Rxa5 {[%clk 0:00:02]} 48. Kb4 {[%clk 0:00:19]}  Ra1 {[%clk 0:00:02]} 49. c5 {[%clk 0:00:20]}  Rb1+ {[%clk 0:00:02]} 50. Kc3 {[%clk 0:00:19]}  h5 {[%clk 0:00:02]} 51. c6 {[%clk 0:00:19]}  Rb6 {[%clk 0:00:00]} 52. Re6 {[%clk 0:00:18]} 1-0


[Site "https://www.chess.com"]

[Event "Titled Tuesday Blitz May 30 Early 2023"]
[White "Kazmin_Semyon"]
[Black "Sieciechowicz, Marcin"]
[BlackFideId "1130170"]
[WhiteElo "2408"]
[BlackElo "2302"]
[Result "0-1"]
[Round "03"]
[TimeControl "180+2"]
[Date "2023.05.30"]
[WhiteClock "0:00:00"]
[BlackClock "0:00:38"]

1. e4 {[%clk 0:02:59]}  e6 {[%clk 0:03:00]} 2. d4 {[%clk 0:02:53]}  d5 {[%clk 0:03:00]} 3. Nc3 {[%clk 0:02:54]}  Nf6 {[%clk 0:02:58]} 4. e5 {[%clk 0:02:54]}  Nfd7 {[%clk 0:02:59]} 5. f4 {[%clk 0:02:55]}  c5 {[%clk 0:02:59]} 6. Nf3 {[%clk 0:02:56]}  Nc6 {[%clk 0:03:00]} 7. Be3 {[%clk 0:02:56]}  Qb6 {[%clk 0:03:00]} 8. Na4 {[%clk 0:02:55]}  Qa5+ {[%clk 0:03:01]} 9. c3 {[%clk 0:02:56]}  b6 {[%clk 0:03:01]} 10. a3 {[%clk 0:02:26]}  c4 {[%clk 0:02:42]} 11. b4 {[%clk 0:02:24]}  cxb3 {[%clk 0:02:40]} 12. Qxb3 {[%clk 0:02:25]}  Ba6 {[%clk 0:02:28]} 13. Rb1 {[%clk 0:02:20]}  Be7 {[%clk 0:02:18]} 14. g4 {[%clk 0:02:16]}  Rc8 {[%clk 0:02:05]} 15. Kf2 {[%clk 0:02:13]}  Bxf1 {[%clk 0:01:53]} 16. Rhxf1 {[%clk 0:02:13]}  Qa6 {[%clk 0:01:52]} 17. Qb5 {[%clk 0:01:44]}  Qxb5 {[%clk 0:01:49]} 18. Rxb5 {[%clk 0:01:45]}  Bxa3 {[%clk 0:01:46]} 19. Ra1 {[%clk 0:01:46]}  Be7 {[%clk 0:01:44]} 20. Nd2 {[%clk 0:01:43]}  O-O {[%clk 0:01:36]} 21. f5 {[%clk 0:01:38]}  f6 {[%clk 0:01:24]} 22. fxe6 {[%clk 0:01:35]}  fxe5+ {[%clk 0:01:24]} 23. Kg2 {[%clk 0:01:32]}  Nf6 {[%clk 0:01:24]} 24. h3 {[%clk 0:01:25]}  exd4 {[%clk 0:01:16]} 25. cxd4 {[%clk 0:01:23]}  Nd8 {[%clk 0:01:00]} 26. g5 {[%clk 0:01:14]}  Nh5 {[%clk 0:01:00]} 27. Rxd5 {[%clk 0:01:09]}  Nxe6 {[%clk 0:01:00]} 28. Re5 {[%clk 0:00:58]}  Nef4+ {[%clk 0:01:01]} 29. Kh1 {[%clk 0:00:35]}  Bd6 {[%clk 0:01:01]} 30. Bxf4 {[%clk 0:00:31]}  Nxf4 {[%clk 0:01:01]} 31. Re3 {[%clk 0:00:27]}  Nd5 {[%clk 0:01:00]} 32. Rf3 {[%clk 0:00:25]}  Bb4 {[%clk 0:00:57]} 33. Rxf8+ {[%clk 0:00:23]}  Rxf8 {[%clk 0:00:58]} 34. Nf1 {[%clk 0:00:18]}  a5 {[%clk 0:00:57]} 35. Kg2 {[%clk 0:00:16]}  b5 {[%clk 0:00:55]} 36. Nc5 {[%clk 0:00:16]}  Bxc5 {[%clk 0:00:51]} 37. dxc5 {[%clk 0:00:17]}  a4 {[%clk 0:00:52]} 38. Nd2 {[%clk 0:00:15]}  Nc3 {[%clk 0:00:45]} 39. Nf3 {[%clk 0:00:05]}  b4 {[%clk 0:00:44]} 40. Nd4 {[%clk 0:00:05]}  b3 {[%clk 0:00:42]} 41. Re1 {[%clk 0:00:02]}  b2 {[%clk 0:00:41]} 42. Ne6 {[%clk 0:00:02]}  b1=Q {[%clk 0:00:39]} 43. Rxb1 {[%clk 0:00:01]}  Nxb1 {[%clk 0:00:40]} 44. Nxf8 {[%clk 0:00:02]}  Kxf8 {[%clk 0:00:40]} 45. Kf3 {[%clk 0:00:02]}  a3 {[%clk 0:00:40]} 46. c6 {[%clk 0:00:03]}  Ke7 {[%clk 0:00:39]} 47. g6 {[%clk 0:00:00]}  hxg6 {[%clk 0:00:38]} 0-1


[Site "https://www.chess.com"]

[Event "Titled Tuesday Blitz May 30 Early 2023"]
[White "Herrera Reyes, Jose Antonio"]
[Black "Bashkansky, Ethan"]
[WhiteFideId "2274914"]
[BlackFideId "2071533"]
[WhiteElo "2272"]
[BlackElo "2328"]
[Result "1-0"]
[Round "03"]
[TimeControl "180+2"]
[Date "2023.05.30"]
[WhiteClock "0:01:50"]
[BlackClock "0:00:02"]

1. Nf3 {[%clk 0:03:00]}  f5 {[%clk 0:02:59]} 2. g3 {[%clk 0:03:01]}  Nf6 {[%clk 0:02:59]} 3. Bg2 {[%clk 0:03:02]}  g6 {[%clk 0:03:00]} 4. d3 {[%clk 0:03:03]}  d6 {[%clk 0:02:59]} 5. Nc3 {[%clk 0:03:04]}  Nc6 {[%clk 0:03:00]} 6. h4 {[%clk 0:03:04]}  h6 {[%clk 0:02:59]} 7. e4 {[%clk 0:03:02]}  Bg7 {[%clk 0:02:58]} 8. Be3 {[%clk 0:02:57]}  Be6 {[%clk 0:02:53]} 9. exf5 {[%clk 0:02:53]}  Bxf5 {[%clk 0:02:54]} 10. Qd2 {[%clk 0:02:53]}  Qd7 {[%clk 0:02:52]} 11. O-O-O {[%clk 0:02:53]}  O-O-O {[%clk 0:02:49]} 12. d4 {[%clk 0:02:52]}  Ne4 {[%clk 0:02:35]} 13. Qe1 {[%clk 0:02:48]}  Kb8 {[%clk 0:02:28]} 14. Nxe4 {[%clk 0:02:26]}  Bxe4 {[%clk 0:02:28]} 15. d5 {[%clk 0:02:25]}  Bxf3 {[%clk 0:02:19]} 16. Bxf3 {[%clk 0:02:22]}  Ne5 {[%clk 0:02:19]} 17. Bg2 {[%clk 0:02:21]}  Qa4 {[%clk 0:01:59]} 18. a3 {[%clk 0:02:14]}  Nc4 {[%clk 0:01:49]} 19. Bd4 {[%clk 0:02:14]}  Bxd4 {[%clk 0:01:13]} 20. Rxd4 {[%clk 0:02:15]}  Qb5 {[%clk 0:01:13]} 21. Qc3 {[%clk 0:02:09]}  Rhf8 {[%clk 0:01:11]} 22. Bf1 {[%clk 0:02:06]}  Qxb2+ {[%clk 0:00:26]} 23. Qxb2 {[%clk 0:02:06]}  Nxb2 {[%clk 0:00:27]} 24. Kxb2 {[%clk 0:02:06]}  Rxf2 {[%clk 0:00:27]} 25. Bd3 {[%clk 0:02:05]}  Rf6 {[%clk 0:00:22]} 26. Re4 {[%clk 0:02:04]}  Re8 {[%clk 0:00:21]} 27. Rhe1 {[%clk 0:02:04]}  c6 {[%clk 0:00:20]} 28. dxc6 {[%clk 0:02:03]}  bxc6 {[%clk 0:00:20]} 29. Rxe7 {[%clk 0:02:03]}  Ref8 {[%clk 0:00:17]} 30. Rg7 {[%clk 0:02:03]}  c5 {[%clk 0:00:15]} 31. Ree7 {[%clk 0:02:02]}  d5 {[%clk 0:00:14]} 32. Rb7+ {[%clk 0:02:02]}  Kc8 {[%clk 0:00:14]} 33. Rxa7 {[%clk 0:02:01]}  Kb8 {[%clk 0:00:14]} 34. Rgb7+ {[%clk 0:02:00]}  Kc8 {[%clk 0:00:15]} 35. Bb5 {[%clk 0:01:54]}  c4 {[%clk 0:00:12]} 36. a4 {[%clk 0:01:50]}  Rd6 {[%clk 0:00:07]} 37. a5 {[%clk 0:01:50]}  d4 {[%clk 0:00:01]} 38. a6 {[%clk 0:01:50]}  c3+ {[%clk 0:00:02]} 39. Kb3 {[%clk 0:01:50]}  Rxa6 {[%clk 0:00:02]} 40. Bxa6 {[%clk 0:01:50]}  Rf6 {[%clk 0:00:02]} 41. Ra8# {[%clk 0:01:50]} 1-0


[Site "https://www.chess.com"]

[Event "Titled Tuesday Blitz May 30 Early 2023"]
[White "Halkias, Stelios"]
[Black "Atoufi, Pedram"]
[WhiteFideId "4201809"]
[BlackFideId "12501654"]
[WhiteElo "2451"]
[BlackElo "2228"]
[Result "1-0"]
[Round "03"]
[TimeControl "180+2"]
[Date "2023.05.30"]
[WhiteClock "0:00:33"]
[BlackClock "0:00:39"]

1. d4 {[%clk 0:03:00]}  d5 {[%clk 0:02:59]} 2. c4 {[%clk 0:03:00]}  Nf6 {[%clk 0:02:57]} 3. cxd5 {[%clk 0:02:59]}  e6 {[%clk 0:02:57]} 4. dxe6 {[%clk 0:02:58]}  Bxe6 {[%clk 0:02:57]} 5. Nc3 {[%clk 0:02:58]}  Nc6 {[%clk 0:02:56]} 6. Nf3 {[%clk 0:02:58]}  Bb4 {[%clk 0:02:52]} 7. e3 {[%clk 0:02:58]}  O-O {[%clk 0:02:43]} 8. Bd3 {[%clk 0:02:54]}  Qd7 {[%clk 0:02:40]} 9. O-O {[%clk 0:02:53]}  Rfd8 {[%clk 0:02:37]} 10. Bd2 {[%clk 0:02:50]}  a6 {[%clk 0:02:35]} 11. Rc1 {[%clk 0:02:47]}  Bf5 {[%clk 0:02:33]} 12. Bxf5 {[%clk 0:02:45]}  Qxf5 {[%clk 0:02:32]} 13. Qb3 {[%clk 0:02:44]}  Bxc3 {[%clk 0:02:26]} 14. Bxc3 {[%clk 0:02:38]}  Qd5 {[%clk 0:02:18]} 15. Qxd5 {[%clk 0:02:34]}  Rxd5 {[%clk 0:02:17]} 16. Rfd1 {[%clk 0:02:34]}  Rad8 {[%clk 0:02:16]} 17. Nd2 {[%clk 0:02:29]}  Re8 {[%clk 0:02:15]} 18. b4 {[%clk 0:02:25]}  g6 {[%clk 0:02:12]} 19. a4 {[%clk 0:02:21]}  Kg7 {[%clk 0:02:11]} 20. Nb3 {[%clk 0:02:19]}  Ne4 {[%clk 0:02:03]} 21. Be1 {[%clk 0:02:18]}  f6 {[%clk 0:02:02]} 22. f3 {[%clk 0:02:08]}  Nd6 {[%clk 0:02:01]} 23. e4 {[%clk 0:02:08]}  Nxe4 {[%clk 0:01:55]} 24. fxe4 {[%clk 0:02:07]}  Rxe4 {[%clk 0:01:55]} 25. Nc5 {[%clk 0:02:01]}  Re7 {[%clk 0:01:51]} 26. Nxb7 {[%clk 0:01:48]}  Nxd4 {[%clk 0:01:50]} 27. Kh1 {[%clk 0:01:46]}  c6 {[%clk 0:01:44]} 28. Nc5 {[%clk 0:01:42]}  g5 {[%clk 0:01:41]} 29. Bf2 {[%clk 0:01:37]}  Ne2 {[%clk 0:01:28]} 30. Rxd5 {[%clk 0:01:34]}  cxd5 {[%clk 0:01:27]} 31. Re1 {[%clk 0:01:33]}  Re5 {[%clk 0:01:24]} 32. h3 {[%clk 0:01:12]}  Nc3 {[%clk 0:01:16]} 33. Rc1 {[%clk 0:00:43]}  Na2 {[%clk 0:01:05]} 34. Rb1 {[%clk 0:00:38]}  Re2 {[%clk 0:01:03]} 35. Bd4 {[%clk 0:00:37]}  Rd2 {[%clk 0:01:01]} 36. b5 {[%clk 0:00:37]}  axb5 {[%clk 0:00:59]} 37. axb5 {[%clk 0:00:37]}  Kf7 {[%clk 0:00:51]} 38. b6 {[%clk 0:00:37]}  Rxd4 {[%clk 0:00:51]} 39. b7 {[%clk 0:00:37]}  Nc3 {[%clk 0:00:50]} 40. b8=Q {[%clk 0:00:37]}  Nxb1 {[%clk 0:00:49]} 41. Qb7+ {[%clk 0:00:37]}  Kg6 {[%clk 0:00:49]} 42. Qxb1+ {[%clk 0:00:38]}  Kh6 {[%clk 0:00:47]} 43. Qf5 {[%clk 0:00:36]}  Rf4 {[%clk 0:00:46]} 44. Qxd5 {[%clk 0:00:36]}  Rf2 {[%clk 0:00:44]} 45. Qf7 {[%clk 0:00:35]}  Re2 {[%clk 0:00:42]} 46. Qxf6+ {[%clk 0:00:34]}  Kh5 {[%clk 0:00:39]} 47. Ne6 {[%clk 0:00:33]} 1-0


[Site "https://www.chess.com"]

[Event "Titled Tuesday Blitz May 30 Early 2023"]
[White "Levitskiy, Andrey"]
[Black "Bluebaum, Matthias"]
[WhiteFideId "14132885"]
[BlackFideId "24651516"]
[WhiteElo "2347"]
[BlackElo "2639"]
[Result "0-1"]
[Round "03"]
[TimeControl "180+2"]
[Date "2023.05.30"]
[WhiteClock "0:00:00"]
[BlackClock "0:01:41"]

1. e4 {[%clk 0:03:00]}  e6 {[%clk 0:03:00]} 2. d4 {[%clk 0:03:01]}  d5 {[%clk 0:03:00]} 3. Bd3 {[%clk 0:03:02]}  dxe4 {[%clk 0:03:01]} 4. Bxe4 {[%clk 0:03:03]}  Nf6 {[%clk 0:03:01]} 5. Bf3 {[%clk 0:03:03]}  c5 {[%clk 0:03:02]} 6. Ne2 {[%clk 0:03:04]}  Be7 {[%clk 0:03:03]} 7. O-O {[%clk 0:03:03]}  O-O {[%clk 0:03:03]} 8. Be3 {[%clk 0:02:57]}  Nc6 {[%clk 0:03:03]} 9. Nbc3 {[%clk 0:02:42]}  cxd4 {[%clk 0:03:02]} 10. Nxd4 {[%clk 0:02:43]}  Ne5 {[%clk 0:03:03]} 11. Qe2 {[%clk 0:02:39]}  Nxf3+ {[%clk 0:03:01]} 12. Qxf3 {[%clk 0:02:32]}  a6 {[%clk 0:02:55]} 13. Rad1 {[%clk 0:02:23]}  Qc7 {[%clk 0:02:55]} 14. Rfe1 {[%clk 0:02:08]}  Bd7 {[%clk 0:02:53]} 15. Bf4 {[%clk 0:01:53]}  Qb6 {[%clk 0:02:53]} 16. Nb3 {[%clk 0:01:52]}  Rfd8 {[%clk 0:02:48]} 17. h3 {[%clk 0:01:47]}  Bc6 {[%clk 0:02:47]} 18. Qg3 {[%clk 0:01:32]}  Nh5 {[%clk 0:02:46]} 19. Bc7 {[%clk 0:01:32]}  Qb4 {[%clk 0:02:14]} 20. Qg4 {[%clk 0:01:07]}  Rxd1 {[%clk 0:02:07]} 21. Rxd1 {[%clk 0:01:02]}  Qxg4 {[%clk 0:02:05]} 22. hxg4 {[%clk 0:01:03]}  Nf6 {[%clk 0:02:06]} 23. f3 {[%clk 0:00:57]}  Rc8 {[%clk 0:02:03]} 24. Bb6 {[%clk 0:00:55]}  Nd5 {[%clk 0:02:04]} 25. Nxd5 {[%clk 0:00:52]}  Bxd5 {[%clk 0:02:05]} 26. c3 {[%clk 0:00:37]}  Rc6 {[%clk 0:02:05]} 27. Be3 {[%clk 0:00:36]}  b6 {[%clk 0:02:05]} 28. Kf2 {[%clk 0:00:35]}  h6 {[%clk 0:02:04]} 29. Rc1 {[%clk 0:00:34]}  Bd8 {[%clk 0:01:57]} 30. Nd4 {[%clk 0:00:32]}  Rc8 {[%clk 0:01:56]} 31. b3 {[%clk 0:00:31]}  b5 {[%clk 0:01:56]} 32. Ne2 {[%clk 0:00:27]}  Be7 {[%clk 0:01:51]} 33. Nf4 {[%clk 0:00:18]}  Bb7 {[%clk 0:01:51]} 34. Nd3 {[%clk 0:00:18]}  Bf6 {[%clk 0:01:49]} 35. Bd4 {[%clk 0:00:15]}  Bg5 {[%clk 0:01:47]} 36. Rd1 {[%clk 0:00:12]}  Rd8 {[%clk 0:01:44]} 37. Nc5 {[%clk 0:00:10]}  Bc8 {[%clk 0:01:43]} 38. Ne4 {[%clk 0:00:00]}  e5 {[%clk 0:01:41]} 0-1


[Site "https://www.chess.com"]